bitfinex/quotes_SOLUSD_20241029
["timestamp","ask_amount","ask_price","bid_price","bid_amount"]
[1730177274898,5.4982,181.88,181.85,7.40713124]
[1730177277203,5.73004892,181.87,181.85,7.40713124]
[1730177279791,6.9489611,181.94,181.86,31.18401524]
[1730177279992,5.4966,181.93,181.92,7.40713124]
[1730177280183,5.496,181.95,181.92,7.40713124]
[1730177280680,5.496,181.95,181.91,7.40713124]
[1730177281296,5.496,181.95,181.87,5.4981]
[1730177281297,12.90313124,181.95,181.9,7.40713124]
[1730177281724,5.496,181.95,181.91,7.40713124]
[1730177283004,5.496,181.95,181.92,7.40713124]
[1730177284023,5.4957,181.96,181.91,7.40713124]
[1730177284509,12.90283124,181.96,181.91,7.40713124]
[1730177285608,5.4957,181.96,181.92,7.40713124]
[1730177287699,5.4957,181.96,181.89,5.4977]
[1730177288006,5.4957,181.96,181.92,7.40713124]
[1730177288507,5.4957,181.96,181.93,7.40713124]
[1730177288893,5.4957,181.96,181.92,7.40713124]
[1730177289896,7.40713124,181.93,181.83,13.7489]
[1730177290101,5.4957,181.96,181.83,13.7489]
[1730177290102,7.40713124,181.92,181.86,7.40713124]
[1730177290300,7.40713124,181.92,181.87,7.40713124]
[1730177290812,7.40713124,181.89,181.79,13.7517]
[1730177291116,7.40713124,181.88,181.83,7.40713124]
[1730177291415,7.40713124,181.89,181.83,7.40713124]
[1730177291603,7.40713124,181.89,181.84,7.40713124]
[1730177291797,7.40713124,181.87,181.79,19.2523]
[1730177292007,7.40713124,181.87,181.82,7.40713124]
[1730177292309,5.4981,181.88,181.83,7.40713124]
[1730177292902,7.40713124,181.88,181.83,7.40713124]
[1730177294021,12.90553124,181.87,181.82,7.40713124]
[1730177295500,12.90553124,181.87,181.79,13.7517]
[1730177295824,12.90553124,181.87,181.82,7.40713124]
[1730177296211,7.40713124,181.86,181.81,7.40713124]
[1730177296902,12.90553124,181.87,181.82,7.40713124]
[1730177298726,12.90553124,181.87,181.81,12.90733124]
[1730177299419,7.40713124,181.86,181.81,12.90733124]
[1730177299626,7.40713124,181.87,181.81,19.2508]
[1730177299929,7.40713124,181.87,181.82,7.40713124]
[1730177300426,7.40713124,181.86,181.81,26.65793124]
[1730177301506,7.40713124,181.86,181.81,19.2508]
[1730177301727,7.40713124,181.86,181.81,26.65793124]
[1730177302224,7.40713124,181.85,181.81,13.7506]
[1730177302423,7.40713124,181.84,181.81,13.7506]
[1730177303105,7.40713124,181.85,181.81,13.7506]
[1730177304409,7.40713124,181.85,181.79,7.40713124]
[1730177304410,7.40713124,181.84,181.79,36.68481524]
[1730177304724,7.40713124,181.83,181.79,29.277684]
[1730177305528,7.40713124,181.82,181.77,19.2543]
[1730177305907,7.40713124,181.82,181.77,26.66143124]
[1730177306331,5.4997,181.83,181.78,7.40713124]
[1730177307006,5.4997,181.83,181.78,12.90813124]
[1730177307625,5.4997,181.83,181.78,5.501]
[1730177307836,5.4997,181.83,181.78,12.90813124]
[1730177308628,5.4997,181.83,181.77,13.7529]
[1730177308933,5.4997,181.83,181.78,7.40713124]
[1730177309730,12.90683124,181.83,181.77,21.16003124]
[1730177309945,12.90683124,181.83,181.77,26.66143124]
[1730177310534,5.4984,181.87,181.8,7.40713124]
[1730177310717,7.40713124,181.85,181.8,7.40713124]
[1730177311610,7.40713124,181.85,181.79,5.5008]
[1730177311818,7.40713124,181.85,181.79,12.90793124]
[1730177312534,7.40713124,181.84,181.79,12.90793124]
[1730177312930,7.40713124,181.82,181.77,26.66143124]
[1730177314331,12.90683124,181.83,181.78,7.40713124]
[1730177314537,5.4997,181.83,181.79,7.40713124]
[1730177314833,12.90683124,181.83,181.77,26.66143124]
[1730177315135,5.4997,181.83,181.78,7.40713124]
[1730177315522,5.4997,181.83,181.78,12.90813124]
[1730177315731,5.4997,181.83,181.79,7.40713124]
[1730177317837,5.4997,181.83,181.78,5.501]
[1730177318029,5.4997,181.83,181.79,7.40713124]
[1730177318833,5.4997,181.83,181.78,7.40713124]
[1730177319337,5.4997,181.83,181.77,21.16003124]
[1730177319852,7.40713124,181.82,181.77,13.7529]
[1730177321245,7.40713124,181.81,181.77,13.7529]
[1730177321423,7.40713124,181.81,181.75,7.40713124]
[1730177321623,7.40713124,181.8,181.75,5.502]
[1730177322019,12.90773124,181.8,181.75,5.502]
[1730177322435,18.63910199,181.82,181.77,7.40713124]
[1730177322743,5.73197075,181.82,181.79,7.40713124]
[1730177322947,5.73197075,181.82,181.78,7.40713124]
[1730177323336,5.73197075,181.82,181.77,7.40713124]
[1730177323642,7.40713124,181.81,181.76,31.18401524]
[1730177323844,12.90733124,181.81,181.76,36.68571524]
[1730177324143,7.40713124,181.8,181.76,5.5017]
[1730177324324,7.40713124,181.8,181.75,13.7551]
[1730177324524,7.40713124,181.8,181.75,19.257]
[1730177325745,12.90733124,181.81,181.76,7.40713124]
[1730177326724,12.90733124,181.81,181.75,7.40713124]
[1730177327138,12.90733124,181.81,181.76,7.40713124]
[1730177327652,12.90733124,181.81,181.73,23.776884]
[1730177327828,12.90733124,181.81,181.76,7.40713124]
[1730177330320,5.5002,181.81,181.76,7.40713124]
[1730177331034,5.5002,181.81,181.75,5.5019]
[1730177331035,12.90733124,181.81,181.75,7.40713124]
[1730177332246,12.90733124,181.81,181.75,12.90913124]
[1730177335332,12.90733124,181.81,181.76,7.40713124]
[1730177335729,5.73197075,181.82,181.77,7.40713124]
[1730177336046,7.40713124,181.82,181.75,23.776884]
[1730177336230,7.40713124,181.82,181.77,7.40713124]
[1730177336652,7.40713124,181.82,181.76,7.40713124]
[1730177337252,12.90713124,181.82,181.76,12.90853124]
[1730177338351,12.90713124,181.82,181.77,7.40713124]
[1730177339557,12.90713124,181.82,181.77,12.90853124]
[1730177340758,12.90713124,181.82,181.76,7.40713124]
[1730177341060,12.90713124,181.82,181.76,12.90883124]
[1730177344558,12.90733124,181.81,181.76,5.5017]
[1730177344751,12.90733124,181.81,181.75,31.18401524]
[1730177344951,12.90733124,181.81,181.74,13.7558]
[1730177344952,7.40713124,181.79,181.74,19.2581]
[1730177345545,7.40713124,181.77,181.71,19.261]
[1730177345760,7.40713124,181.77,181.71,26.66813124]
[1730177346062,7.40713124,181.77,181.72,7.40713124]
[1730177346433,7.40713124,181.77,181.71,26.66813124]
[1730177346638,7.40713124,181.76,181.71,13.7581]
[1730177347255,7.40713124,181.76,181.71,21.16523124]
[1730177348861,12.90883124,181.76,181.71,21.16523124]
[1730177350955,12.90883124,181.76,181.71,13.7581]
[1730177352241,7.40713124,181.75,181.71,13.7581]
[1730177353358,5.5014,181.77,181.71,13.7581]
[1730177353668,7.40713124,181.76,181.71,13.7581]
[1730177353858,7.40713124,181.75,181.71,13.7581]
[1730177354559,7.40713124,181.76,181.7,7.40713124]
[1730177355742,12.90913124,181.76,181.7,12.91063124]
[1730177355949,7.40713124,181.74,181.7,5.5035]
[1730177356572,7.40713124,181.74,181.69,12.91083124]
[1730177356748,7.40713124,181.73,181.67,21.16833124]
[1730177357063,7.40713124,181.73,181.68,5.5041]
[1730177357645,7.40713124,181.71,181.67,13.7612]
[1730177357966,12.91043124,181.71,181.67,13.7612]
[1730177358153,12.91043124,181.71,181.66,5.5047]
[1730177358461,7.40713124,181.7,181.66,5.5047]
[1730177359271,12.91073124,181.7,181.64,19.2687]
[1730177359450,7.40713124,181.69,181.64,19.2687]
[1730177359649,7.40713124,181.69,181.64,26.67583124]
[1730177359846,12.91073124,181.7,181.64,26.67583124]
[1730177360167,7.40713124,181.69,181.64,26.67583124]
[1730177360667,7.40713124,181.7,181.64,26.67583124]
[1730177361772,7.40713124,181.7,181.65,7.40713124]
[1730177361963,12.91063124,181.71,181.65,7.40713124]
[1730177363056,7.40713124,181.7,181.65,5.505]
[1730177364267,7.40713124,181.7,181.65,7.40713124]
[1730177366562,12.91063124,181.7,181.65,12.91213124]
[1730177367170,12.91063124,181.7,181.65,5.505]
[1730177367966,5.69114999,181.72,181.65,12.91213124]
[1730177368172,7.40713124,181.71,181.65,26.67483124]
[1730177369559,12.91033124,181.71,181.65,26.67483124]
[1730177369967,12.91033124,181.71,181.66,7.40713124]
[1730177370461,12.91033124,181.71,181.66,12.91183124]
[1730177371249,5.69114999,181.72,181.69,7.40713124]
[1730177371562,7.40713124,181.73,181.68,7.40713124]
[1730177372567,7.40713124,181.73,181.68,12.91103124]
[1730177373467,12.90953124,181.74,181.68,12.91103124]
[1730177374474,7.40713124,181.72,181.66,26.67363124]
[1730177375360,7.40713124,181.7,181.66,13.7619]
[1730177375557,7.40713124,181.7,181.66,19.2666]
[1730177375954,7.40713124,181.71,181.66,19.2666]
[1730177376752,12.91033124,181.71,181.66,19.2666]
[1730177376976,12.91033124,181.71,181.66,13.7619]
[1730177378555,12.91033124,181.71,181.66,21.16903124]
[1730177379378,5.68768597,181.75,181.68,22.5534]
[1730177379582,5.68768597,181.75,181.72,7.40713124]
[1730177379783,7.40713124,181.76,181.68,22.5534]
[1730177379970,7.40713124,181.76,181.71,7.40713124]
[1730177380280,7.40713124,181.75,181.7,7.40713124]
[1730177381185,7.40713124,181.75,181.7,12.91053124]
[1730177382486,12.90893124,181.76,181.71,7.40713124]
[1730177382665,12.90893124,181.76,181.69,19.2634]
[1730177382985,12.90893124,181.76,181.7,7.40713124]
[1730177383865,12.90893124,181.76,181.71,7.40713124]
[1730177384266,5.5018,181.76,181.71,7.40713124]
[1730177388090,7.40713124,181.75,181.69,13.7596]
[1730177388278,5.5018,181.76,181.68,5.5039]
[1730177388279,12.90893124,181.76,181.7,7.40713124]
[1730177389671,12.90893124,181.76,181.69,5.5035]
[1730177389972,12.90893124,181.76,181.7,7.40713124]
[1730177391386,5.66840449,181.75,181.7,7.40713124]
[1730177391688,11.17040449,181.75,181.7,7.40713124]
[1730177392076,11.17040449,181.75,181.69,19.2632]
[1730177392077,18.57753573,181.75,181.69,26.67033124]
[1730177392786,18.57753573,181.75,181.65,63.044584]
[1730177393100,18.57753573,181.75,181.69,7.40713124]
[1730177393772,18.57753573,181.75,181.65,63.044584]
[1730177393973,7.40713124,181.74,181.69,5.5036]
[1730177394187,7.40713124,181.74,181.68,26.67123124]
[1730177394780,7.40713124,181.73,181.68,26.67123124]
[1730177395300,7.40713124,181.73,181.68,19.2641]
[1730177395604,12.90973124,181.74,181.69,7.40713124]
[1730177398375,12.90973124,181.74,181.68,21.16723124]
[1730177398581,5.5026,181.74,181.68,13.7601]
[1730177398778,18.57753573,181.75,181.69,7.40713124]
[1730177398990,11.17040449,181.75,181.7,7.40713124]
[1730177399297,18.57753573,181.75,181.7,7.40713124]
[1730177399478,18.57753573,181.75,181.68,13.7601]
[1730177399479,18.57753573,181.75,181.69,7.40713124]
[1730177401392,18.57753573,181.75,181.69,12.91073124]
[1730177401983,18.57753573,181.75,181.7,7.40713124]
[1730177401984,5.66840449,181.75,181.7,7.40713124]
[1730177402192,6.43374999,181.78,181.71,7.40713124]
[1730177402395,6.43374999,181.78,181.72,7.40713124]
[1730177402596,19.53052534,181.78,181.72,7.40713124]
[1730177403296,7.40713124,181.77,181.72,7.40713124]
[1730177404591,7.40713124,181.77,181.71,5.503]
[1730177404797,7.40713124,181.77,181.72,7.40713124]
[1730177405204,7.40713124,181.76,181.71,5.503]
[1730177405998,12.90873124,181.77,181.71,12.91013124]
[1730177406914,12.90873124,181.77,181.72,7.40713124]
[1730177407694,5.5016,181.77,181.72,7.40713124]
[1730177407890,12.90873124,181.77,181.72,7.40713124]
[1730177410103,7.40713124,181.75,181.69,13.7597]
[1730177410306,7.40713124,181.74,181.69,19.2635]
[1730177411200,12.90943124,181.74,181.69,26.67063124]
[1730177411503,5.5023,181.74,181.69,26.67063124]
[1730177412500,12.90853124,181.77,181.71,7.40713124]
[1730177412725,7.40713124,181.76,181.7,7.40713124]
[1730177413022,7.40713124,181.75,181.7,7.40713124]
[1730177413612,18.59422155,181.76,181.7,12.91053124]
[1730177413999,12.90913124,181.76,181.7,5.5034]
[1730177414202,12.90913124,181.76,181.7,12.91053124]
[1730177417004,18.59390907,181.76,181.71,7.40713124]
[1730177420529,5.68477783,181.76,181.73,7.40713124]
[1730177420730,12.90833124,181.78,181.73,7.40713124]
[1730177420931,18.59150475,181.78,181.73,7.40713124]
[1730177421927,18.59150475,181.78,181.72,12.90993124]
[1730177422226,7.40713124,181.77,181.72,5.5028]
[1730177422614,7.40713124,181.75,181.71,13.7581]
[1730177423629,12.90913124,181.75,181.71,13.7581]
[1730177424631,7.40713124,181.77,181.71,21.16523124]
[1730177424804,12.90853124,181.77,181.71,21.16523124]
[1730177425008,7.40713124,181.76,181.71,21.16523124]
[1730177425404,12.90853124,181.77,181.71,13.7581]
[1730177425609,12.90853124,181.77,181.71,21.16523124]
[1730177426030,5.5014,181.77,181.71,21.16523124]
[1730177426433,12.90853124,181.77,181.71,21.16523124]
[1730177427934,12.90903124,181.76,181.71,21.16523124]
[1730177428939,12.90903124,181.76,181.7,7.40713124]
[1730177429321,12.90903124,181.76,181.66,20.0]
[1730177429509,12.90903124,181.76,181.71,7.40713124]
[1730177429710,5.5019,181.76,181.71,7.40713124]
[1730177430428,12.90903124,181.76,181.71,7.40713124]
[1730177430816,5.5019,181.76,181.72,7.40713124]
[1730177431238,5.5019,181.76,181.71,12.91033124]
[1730177431439,5.5019,181.76,181.71,5.5032]
[1730177431641,5.5019,181.76,181.71,12.91033124]
[1730177431817,5.68317351,181.78,181.75,7.40713124]
[1730177432128,5.68317351,181.78,181.76,7.40713124]
[1730177433633,5.68317351,181.78,181.77,7.40713124]
[1730177439830,5.68317351,181.78,181.72,43.776884]
[1730177440026,5.68317351,181.78,181.77,7.40713124]
[1730177441314,5.68317351,181.78,181.76,7.40713124]
[1730177441520,5.5,181.82,181.77,7.40713124]
[1730177441735,5.4996,181.84,181.79,7.40713124]
[1730177441941,5.68297948,181.83,181.79,7.40713124]
[1730177443623,11.18277948,181.83,181.79,7.40713124]
[1730177453537,11.18277948,181.83,181.78,7.40713124]
[1730177453741,11.18277948,181.83,181.79,7.40713124]
[1730177456051,11.18277948,181.83,181.76,19.2555]
[1730177456052,11.18277948,181.83,181.78,7.40713124]
[1730177456250,18.58991072,181.83,181.78,7.40713124]
[1730177456557,18.58991072,181.83,181.77,7.40713124]
[1730177457150,18.58991072,181.83,181.78,7.40713124]
[1730177458958,18.58991072,181.83,181.77,7.40713124]
[1730177459459,18.58991072,181.83,181.78,7.40713124]
[1730177460156,11.18277948,181.83,181.8,7.40713124]
[1730177460359,11.18277948,181.83,181.78,7.40713124]
[1730177460742,18.58991072,181.83,181.78,7.40713124]
[1730177461258,18.58991072,181.83,181.75,19.2569]
[1730177461259,7.40713124,181.8,181.71,13.7575]
[1730177461463,7.40713124,181.8,181.72,5.5029]
[1730177461966,13.07786486,181.8,181.71,19.2607]
[1730177462162,13.07786486,181.8,181.74,7.40713124]
[1730177462460,5.67073362,181.8,181.71,19.2607]
[1730177462640,5.67073362,181.8,181.75,7.40713124]
[1730177462966,13.07786486,181.8,181.75,7.40713124]
[1730177463164,11.17143362,181.8,181.75,7.40713124]
[1730177463741,11.17143362,181.8,181.76,7.40713124]
[1730177465861,5.67073362,181.8,181.77,7.40713124]
[1730177466063,5.67073362,181.8,181.79,7.40713124]
[1730177469767,5.67073362,181.8,181.78,7.40713124]
[1730177471154,5.67073362,181.8,181.79,7.40713124]
[1730177471469,5.67351961,181.83,181.79,7.40713124]
[1730177472154,5.67351961,181.83,181.8,7.40713124]
[1730177473962,7.53748198,181.85,181.82,7.40713124]
[1730177474485,7.53748198,181.85,181.83,7.40713124]
[1730177474655,7.53748198,181.85,181.84,7.40713124]
[1730177474970,7.53748198,181.85,181.83,7.40713124]
[1730177475171,7.53748198,181.85,181.84,7.40713124]
[1730177476073,7.53748198,181.85,181.84,12.90643124]
[1730177476257,5.67828197,181.9,181.84,26.65473124]
[1730177476457,5.67828197,181.9,181.89,7.40713124]
[1730177476665,20.6433,181.93,181.89,7.40713124]
[1730177476972,33.72802263,181.93,181.88,7.40713124]
[1730177477179,7.40713124,181.92,181.87,7.40713124]
[1730177477552,33.72802263,181.93,181.88,7.40713124]
[1730177477757,26.32089139,181.93,181.89,7.40713124]
[1730177478669,33.72802263,181.93,181.87,7.40713124]
[1730177479071,7.40713124,181.92,181.85,5.499]
[1730177479369,7.40713124,181.91,181.86,7.40713124]
[1730177479576,26.32089139,181.93,181.87,7.40713124]
[1730177479577,33.72802263,181.93,181.87,7.40713124]
[1730177479885,33.72802263,181.93,181.88,7.40713124]
[1730177480169,26.32089139,181.93,181.89,7.40713124]
[1730177487377,7.40713124,181.92,181.87,7.40713124]
[1730177487576,7.40713124,181.9,181.82,28.6927]
[1730177487789,7.40713124,181.91,181.86,7.40713124]
[1730177488087,5.66504453,181.89,181.86,7.40713124]
[1730177489386,11.16284453,181.89,181.86,7.40713124]
[1730177493384,11.16284453,181.89,181.85,7.40713124]
[1730177494980,11.16284453,181.89,181.82,13.25183024]
[1730177495294,11.16284453,181.89,181.85,7.40713124]
[1730177497672,18.56997577,181.89,181.84,7.40713124]
[1730177497873,7.40713124,181.88,181.79,39.2528]
[1730177498084,7.40713124,181.85,181.8,7.40713124]
[1730177498275,7.40713124,181.84,181.79,7.40713124]
[1730177499175,13.0789658,181.85,181.79,7.40713124]
[1730177499379,5.4993,181.84,181.79,7.40713124]
[1730177500897,5.4993,181.84,181.8,7.40713124]
[1730177502002,5.67183456,181.85,181.83,7.40713124]
[1730177502583,5.67183456,181.85,181.82,7.40713124]
[1730177503983,5.67183456,181.85,181.81,7.40713124]
[1730177505604,18.5780658,181.85,181.79,13.7518]
[1730177505785,18.5780658,181.85,181.79,21.15893124]
[1730177506501,7.40713124,181.8,181.71,19.2607]
[1730177506701,7.40713124,181.79,181.73,7.40713124]
[1730177507691,12.90813124,181.79,181.74,7.40713124]
[1730177508306,12.90813124,181.79,181.71,13.7575]
[1730177508500,7.40713124,181.77,181.71,13.7575]
[1730177508697,7.40713124,181.77,181.72,7.40713124]
[1730177509089,12.90853124,181.77,181.72,7.40713124]
[1730177510407,12.90853124,181.77,181.72,12.91003124]
[1730177512389,12.90853124,181.77,181.69,27.519]
[1730177512597,12.90853124,181.77,181.72,7.40713124]
[1730177513291,12.90853124,181.77,181.69,27.519]
[1730177513493,12.90853124,181.77,181.72,5.5029]
[1730177514211,12.90853124,181.77,181.72,12.91003124]
[1730177514590,5.67844222,181.78,181.73,7.40713124]
[1730177514591,18.58677346,181.78,181.73,7.40713124]
[1730177514893,11.17964222,181.78,181.73,7.40713124]
[1730177515506,18.58677346,181.78,181.73,7.40713124]
[1730177516703,18.58677346,181.78,181.72,7.40713124]
[1730177517014,11.17964222,181.78,181.71,7.40713124]
[1730177517203,7.40713124,181.76,181.71,7.40713124]
[1730177517388,7.40713124,181.76,181.69,27.519]
[1730177517591,7.40713124,181.77,181.71,7.40713124]
[1730177518416,7.40713124,181.77,181.69,27.519]
[1730177518589,12.90863124,181.77,181.71,7.40713124]
[1730177519691,12.90863124,181.77,181.72,5.5029]
[1730177520108,12.90863124,181.77,181.69,21.16683124]
[1730177520109,7.40713124,181.75,181.69,21.16683124]
[1730177521196,7.40713124,181.75,181.69,26.67063124]
[1730177521916,7.40713124,181.74,181.69,26.67063124]
[1730177522419,7.40713124,181.75,181.69,13.7597]
[1730177522594,7.40713124,181.75,181.69,21.16683124]
[1730177523619,7.40713124,181.75,181.69,26.67063124]
[1730177524102,12.90913124,181.75,181.69,26.67063124]
[1730177525504,5.502,181.75,181.7,7.40713124]
[1730177525805,5.67793532,181.76,181.72,7.40713124]
[1730177526518,5.67793532,181.76,181.71,7.40713124]
[1730177526901,5.67793532,181.76,181.71,12.91003124]
[1730177529195,5.67793532,181.76,181.72,7.40713124]
[1730177531524,7.40713124,181.75,181.7,19.2624]
[1730177531700,18.58696656,181.76,181.7,26.66953124]
[1730177533623,18.58696656,181.76,181.71,7.40713124]
[1730177534527,11.17983532,181.76,181.71,7.40713124]
[1730177535139,7.40713124,181.72,181.65,5.505]
[1730177535419,7.40713124,181.72,181.66,7.40713124]
[1730177535714,13.08801146,181.73,181.66,7.40713124]
[1730177536018,13.08801146,181.73,181.67,7.40713124]
[1730177536221,18.59091146,181.73,181.67,7.40713124]
[1730177537124,18.59061146,181.73,181.68,7.40713124]
[1730177537421,18.59061146,181.73,181.67,26.67273124]
[1730177538304,18.59061146,181.73,181.67,21.16833124]
[1730177539727,18.59061146,181.73,181.68,7.40713124]
[1730177542717,11.18348022,181.73,181.68,7.40713124]
[1730177543327,18.59061146,181.73,181.68,7.40713124]
[1730177544498,11.18348022,181.73,181.68,7.40713124]
[1730177544727,5.68088022,181.73,181.69,7.40713124]
[1730177545027,5.68088022,181.73,181.7,7.40713124]
[1730177545904,11.18358022,181.73,181.7,7.40713124]
[1730177546317,11.18358022,181.73,181.69,7.40713124]
[1730177546524,11.18358022,181.73,181.66,13.7612]
[1730177546525,5.68088022,181.73,181.72,7.40713124]
[1730177546825,11.18239595,181.76,181.72,7.40713124]
[1730177551827,11.18239595,181.76,181.64,6.358]
[1730177552130,11.18239595,181.76,181.73,7.40713124]
[1730177558522,5.5014,181.77,181.73,7.40713124]
[1730177559540,5.5011,181.78,181.73,7.40713124]
[1730177561441,5.5017,181.76,181.73,7.40713124]
[1730177575857,5.5017,181.76,181.73,6.90713124]
[1730177578160,5.5017,181.76,181.67,19.2656]
[1730177578348,5.5017,181.76,181.72,7.40713124]
[1730177578653,5.5017,181.76,181.73,7.40713124]
[1730177579038,5.5017,181.76,181.73,6.90713124]
[1730177579851,5.67706176,181.77,181.75,7.40713124]
[1730177580159,20.5031,181.79,181.75,7.40713124]
[1730177580362,5.6818462,181.77,181.75,7.40713124]
[1730177584164,4.6818462,181.77,181.75,7.40713124]
[1730177584668,4.6818462,181.77,181.74,7.40713124]
[1730177587473,4.6818462,181.77,181.75,7.40713124]
[1730177588065,0.95775782,181.83,181.76,7.40713124]
[1730177588360,5.4996,181.83,181.79,7.40713124]
[1730177588683,7.40713124,181.83,181.78,7.40713124]
[1730177589135,37.36048508,181.83,181.78,7.40713124]
[1730177589341,7.40713124,181.83,181.78,7.40713124]
[1730177590573,12.90703124,181.83,181.78,7.40713124]
[1730177590775,5.4999,181.83,181.78,7.40713124]
[1730177591677,5.4999,181.83,181.79,7.40713124]
[1730177593279,12.90643124,181.84,181.79,7.40713124]
[1730177593463,5.4993,181.84,181.8,7.40713124]
[1730177593944,12.90643124,181.84,181.73,46.7712]
[1730177594148,7.40713124,181.83,181.78,7.40713124]
[1730177594450,7.40713124,181.83,181.77,7.40713124]
[1730177594774,7.40713124,181.8,181.75,7.40713124]
[1730177595258,7.40713124,181.8,181.73,13.7566]
[1730177595463,7.40713124,181.8,181.75,7.40713124]
[1730177595667,7.40713124,181.79,181.74,7.40713124]
[1730177595983,5.501,181.79,181.74,7.40713124]
[1730177596269,5.501,181.79,181.73,19.2591]
[1730177596485,5.501,181.79,181.74,7.40713124]
[1730177598789,5.501,181.79,181.73,21.16373124]
[1730177598790,7.40713124,181.79,181.73,21.16373124]
[1730177599088,7.40713124,181.78,181.73,21.16373124]
[1730177599461,7.40713124,181.78,181.72,7.40713124]
[1730177599661,7.40713124,181.77,181.71,7.40713124]
[1730177600887,12.90883124,181.77,181.71,12.91033124]
[1730177601091,5.5017,181.77,181.72,7.40713124]
[1730177601764,7.40713124,181.77,181.72,7.40713124]
[1730177603391,12.90873124,181.77,181.72,7.40713124]
[1730177603770,12.90873124,181.77,181.71,12.91033124]
[1730177604194,12.90873124,181.77,181.72,7.40713124]
[1730177606093,12.90873124,181.77,181.71,7.40713124]
[1730177606995,7.40713124,181.75,181.65,27.5254]
[1730177607197,5.5016,181.77,181.66,43.776884]
[1730177607198,7.40713124,181.74,181.66,43.776884]
[1730177607367,7.40713124,181.74,181.69,7.40713124]
[1730177607568,7.40713124,181.74,181.66,43.776884]
[1730177607770,7.40713124,181.74,181.69,7.40713124]
[1730177608067,7.40713124,181.74,181.7,5.5035]
[1730177608694,7.40713124,181.74,181.69,12.91093124]
[1730177609069,12.90913124,181.75,181.69,12.91093124]
[1730177609682,12.90913124,181.75,181.69,12.41093124]
[1730177610583,7.40713124,181.75,181.7,7.40713124]
[1730177610796,12.90883124,181.76,181.7,7.40713124]
[1730177611389,5.5017,181.76,181.71,7.40713124]
[1730177611674,5.5017,181.76,181.71,12.91023124]
[1730177611876,7.40713124,181.77,181.71,26.66833124]
[1730177612096,7.40713124,181.77,181.72,7.40713124]
[1730177612675,7.40713124,181.77,181.71,26.66833124]
[1730177614292,12.90863124,181.77,181.71,26.66833124]
[1730177616103,7.40713124,181.76,181.7,7.40713124]
[1730177617178,7.40713124,181.76,181.71,5.5032]
[1730177617792,5.5015,181.77,181.71,12.91033124]
[1730177617793,12.90863124,181.77,181.71,12.91033124]
[1730177618291,7.40713124,181.76,181.7,7.40713124]
[1730177619197,7.40713124,181.76,181.68,20.0]
[1730177619406,7.40713124,181.76,181.7,7.40713124]
[1730177620407,7.40713124,181.76,181.71,5.5032]
[1730177623483,7.40713124,181.75,181.69,21.16683124]
[1730177623810,7.40713124,181.75,181.69,13.7597]
[1730177624019,7.40713124,181.75,181.7,5.5033]
[1730177624303,12.90883124,181.76,181.7,12.91043124]
[1730177625987,7.40713124,181.75,181.66,20.0]
[1730177626186,7.40713124,181.75,181.68,7.40713124]
[1730177626396,7.40713124,181.75,181.69,7.40713124]
[1730177626592,5.5017,181.76,181.69,7.40713124]
[1730177626810,12.90883124,181.76,181.7,7.40713124]
[1730177627304,12.90883124,181.76,181.7,26.66943124]
[1730177638414,12.90883124,181.76,181.66,20.0]
[1730177638415,7.40713124,181.75,181.67,19.2656]
[1730177638616,7.40713124,181.75,181.69,7.40713124]
[1730177639520,12.90923124,181.75,181.69,12.91083124]
[1730177640590,5.5021,181.75,181.7,7.40713124]
[1730177644733,5.5021,181.75,181.69,5.5035]
[1730177645024,5.5021,181.75,181.69,12.91063124]
[1730177645025,12.90923124,181.75,181.69,12.91063124]
[1730177646320,5.5021,181.75,181.7,7.40713124]
[1730177648523,5.5021,181.75,181.7,12.91063124]
[1730177650301,5.5021,181.75,181.7,7.40713124]
[1730177650506,12.90923124,181.75,181.69,12.91093124]
[1730177651430,5.5021,181.75,181.69,12.91093124]
[1730177656206,7.40713124,181.75,181.69,5.5038]
[1730177656719,7.40713124,181.75,181.69,12.91093124]
[1730177657115,12.90933124,181.75,181.69,12.91093124]
[1730177657322,12.90933124,181.75,181.67,13.7612]
[1730177657524,7.40713124,181.73,181.67,19.2656]
[1730177657710,7.40713124,181.73,181.67,26.67273124]
[1730177658220,6.45971031,181.77,181.69,7.40713124]
[1730177658417,6.45971031,181.77,181.7,7.40713124]
[1730177658617,7.40713124,181.75,181.7,7.40713124]
[1730177658807,7.40713124,181.75,181.69,7.40713124]
[1730177659018,7.40713124,181.74,181.68,7.40713124]
[1730177659307,12.90943124,181.75,181.69,12.91093124]
[1730177669136,7.40713124,181.74,181.68,7.40713124]
[1730177670214,7.40713124,181.73,181.67,7.40713124]
[1730177670615,7.40713124,181.73,181.68,7.40713124]
[1730177671132,5.5032,181.71,181.66,7.40713124]
[1730177671437,5.5032,181.71,181.66,12.91173124]
[1730177673311,5.5032,181.71,181.66,7.40713124]
[1730177673516,5.5032,181.71,181.66,12.91183124]
[1730177674434,5.5032,181.71,181.66,7.40713124]